bitfinex/quotes_ETHUSD_20260202
["timestamp","ask_amount","ask_price","bid_price","bid_amount"]
[1770034573849,0.0011,2300.8,2299.7,12.9444725]
[1770034574051,0.93350361,2300.7,2299.7,12.9444725]
[1770034574233,0.0011,2300.8,2299.7,12.9444725]
[1770034578655,0.0011,2300.9,2299.8,12.9444725]
[1770034578855,11.94041859,2302.3,2300.4,12.9444725]
[1770034579152,0.1024,2302.2,2300.6,12.9444725]
[1770034579353,11.94041859,2302.3,2300.6,12.9444725]
[1770034579554,14.0220374,2302.7,2300.6,12.9444725]
[1770034579753,0.1024,2302.6,2300.6,12.9444725]
[1770034581053,0.1024,2302.4,2300.6,12.9444725]
[1770034581553,11.94041859,2302.2,2300.6,12.9444725]
[1770034581754,11.94041859,2302.2,2300.7,0.912]
[1770034582451,11.94041859,2302.2,2300.7,13.8564725]
[1770034582857,0.1024,2302.4,2300.7,13.8564725]
[1770034583034,11.94041859,2302.2,2300.7,13.8564725]
[1770034583634,0.0011,2301.5,2300.7,13.8564725]
[1770034587560,0.9131,2302.7,2300.8,12.9444725]
[1770034587561,0.1024,2302.5,2300.8,12.9444725]
[1770034587745,11.94041859,2302.6,2301.0,12.9444725]
[1770034589362,0.0011,2302.7,2301.0,14.03095457]
[1770034589563,0.0011,2302.7,2301.4,12.9444725]
[1770034589865,0.0011,2302.7,2301.1,9.24182298]
[1770034589866,11.94041859,2303.8,2301.9,12.9444725]
[1770034590063,11.94041859,2303.8,2302.0,14.23891975]
[1770034590252,11.94041859,2303.8,2302.2,12.9444725]
[1770034590962,11.94041859,2303.5,2302.1,0.912]
[1770034591954,11.94041859,2303.5,2301.8,12.9444725]
[1770034592143,11.94041859,2303.3,2301.8,15.15091975]
[1770034594959,1.19404186,2303.4,2301.8,15.15091975]
[1770034595272,0.1024,2303.5,2301.8,15.15091975]
[1770034595445,11.94041859,2303.6,2301.8,15.15091975]
[1770034595839,11.94041859,2303.6,2301.9,13.8554725]
[1770034596051,11.94041859,2303.4,2301.9,13.8554725]
[1770034596369,13.13556045,2303.3,2301.9,12.9444725]
[1770034596567,11.94151859,2303.3,2301.9,12.9444725]
[1770034600185,12.74410044,2303.1,2301.8,0.911]
[1770034600372,12.74410044,2302.9,2301.8,0.911]
[1770034600570,1.37751592,2302.8,2301.8,0.911]
[1770034600879,0.1024,2303.0,2301.8,0.911]
[1770034601090,12.84650044,2303.0,2301.8,0.911]
[1770034602191,12.74410044,2302.6,2300.9,14.88474902]
[1770034602399,11.55084538,2302.9,2300.9,14.88474902]
[1770034602400,12.74410044,2302.4,2300.9,14.88474902]
[1770034603050,0.1024,2302.6,2300.9,14.88474902]
[1770034603253,0.93017529,2302.5,2301.1,12.48961425]
[1770034603453,1.1601561,2303.0,2301.1,12.48961425]
[1770034603683,0.9307669,2302.9,2301.1,12.48961425]
[1770034603976,8.6316222,2303.1,2301.1,12.48961425]
[1770034604173,1.79390403,2303.0,2301.3,12.48961425]
[1770034604379,1.79390403,2303.0,2301.2,1.50646381]
[1770034604380,0.93074181,2302.9,2301.5,12.48961425]
[1770034604574,0.86316222,2303.0,2301.5,12.48961425]
[1770034604782,0.0011,2303.3,2301.5,12.48961425]
[1770034604993,12.74410044,2303.0,2301.5,12.48961425]
[1770034605284,13.67546223,2302.9,2301.2,1.50646381]
[1770034605495,12.74410044,2302.7,2301.2,2.41746381]
[1770034605655,0.93136179,2302.6,2301.2,2.41746381]
[1770034605976,1.36754622,2302.5,2301.3,1.49070781]
[1770034606185,13.6763305,2302.4,2300.8,0.001]
[1770034606379,13.6763305,2302.3,2300.8,0.001]
[1770034606559,13.6763305,2302.2,2300.8,0.001]
[1770034606759,0.1024,2302.0,2300.8,0.001]
[1770034607086,12.74410044,2301.8,2300.8,0.001]
[1770034607382,12.84650044,2301.6,2300.5,0.001]
[1770034607612,0.93223006,2301.5,2300.5,0.001]
[1770034607769,2.07526012,2301.9,2300.5,0.001]
[1770034608083,2.4926914,2301.8,2300.5,12.49061425]
[1770034608286,0.93335885,2301.7,2300.5,12.49061425]
[1770034608793,0.93335885,2301.7,2300.5,0.001]
[1770034609163,12.71879816,2301.7,2300.5,0.001]
[1770034609460,0.93335885,2301.6,2300.5,0.001]
[1770034609665,14.22157925,2301.5,2300.5,0.001]
[1770034609989,11.78543931,2301.2,2299.7,12.62297299]
[1770034610189,11.78543931,2301.2,2299.8,0.001]
[1770034610190,18.70912731,2300.9,2299.8,0.001]
[1770034610391,18.70912731,2300.9,2299.7,0.79911324]
[1770034610392,14.06119731,2300.7,2299.7,0.79911324]
[1770034610693,13.88305828,2300.6,2298.9,11.82385975]
[1770034610867,2.33190468,2300.5,2298.9,11.82385975]
[1770034611072,0.93335885,2300.4,2298.9,11.82385975]
[1770034611274,1.39854583,2300.5,2298.9,11.82385975]
[1770034611480,0.93182888,2300.4,2299.2,11.82385975]
[1770034611661,0.1024,2300.7,2299.2,11.82385975]
[1770034611961,0.93176194,2300.6,2299.2,11.82385975]
[1770034612288,1.16426012,2300.9,2299.2,11.82385975]
[1770034612460,2.22573691,2300.8,2299.2,11.82385975]
[1770034612659,0.93076697,2300.7,2299.2,11.82385975]
[1770034613073,1.29496994,2300.8,2299.6,11.82485975]
[1770034613290,0.911,2300.9,2299.6,11.82485975]
[1770034613596,1.02354662,2301.2,2299.6,11.82485975]
[1770034613764,0.92996087,2301.1,2299.6,11.82485975]
[1770034613989,1.02354662,2301.2,2299.6,11.82485975]
[1770034614293,1.02354662,2301.2,2299.8,11.82385975]
[1770034621375,11.824501,2300.9,2299.6,0.001]
[1770034621580,14.83263331,2300.5,2299.6,0.001]
[1770034621787,11.78543931,2300.5,2299.6,0.001]
[1770034621988,2.24068905,2300.4,2299.6,0.001]
[1770034622305,0.1024,2300.7,2300.0,0.001]
[1770034622879,11.88783931,2300.7,2299.8,0.001]
[1770034624182,1.16536012,2301.0,2299.8,0.001]
[1770034624183,0.1035,2301.0,2299.8,0.001]
[1770034624608,0.0011,2301.0,2299.8,11.82485975]
[1770034624811,0.0011,2301.0,2299.9,1.18248598]
[1770034627419,0.0011,2301.0,2299.9,13.00634573]
[1770034628303,0.0011,2301.0,2299.9,1.18248598]
[1770034628522,0.0011,2301.0,2299.8,12.31530239]
[1770034629418,1.02464662,2301.2,2299.9,12.31430239]
[1770034629925,1.02464662,2301.2,2300.1,12.31430239]
[1770034630821,1.02464662,2301.2,2299.8,0.001]
[1770034631183,1.02464662,2301.2,2299.8,12.31530239]
[1770034631184,0.93182655,2301.1,2299.8,12.31530239]
[1770034631416,1.02464662,2301.2,2299.9,13.54583263]
[1770034631822,1.02464662,2301.2,2299.8,0.001]
[1770034631823,0.93239521,2301.1,2299.8,0.001]
[1770034632017,1.02464662,2301.2,2299.8,0.001]
[1770034632018,0.93239521,2301.0,2299.8,0.001]
[1770034632313,0.93297327,2300.9,2299.8,12.31530239]
[1770034632497,3.10090674,2301.2,2299.8,12.31530239]
[1770034632699,2.50383735,2301.1,2299.9,1.23153024]
[1770034632917,0.93296229,2301.0,2299.9,1.23153024]
[1770034633106,1.57087506,2301.1,2299.9,1.23153024]
[1770034633424,0.93324707,2301.0,2299.9,1.23153024]
[1770034633725,0.93324707,2300.9,2299.9,13.54583263]
[1770034633941,3.10090674,2301.2,2300.0,1.35468326]
[1770034634221,2.09762403,2301.1,2300.0,1.35468326]
[1770034635035,14.7054679,2301.1,2299.8,0.001]
[1770034635191,1.16426012,2300.5,2299.8,0.001]
[1770034635786,2.09762403,2300.5,2299.8,0.001]
[1770034635992,0.36555698,2300.4,2299.8,0.001]
[1770034636198,0.36555698,2300.4,2300.1,0.001]
[1770034636403,0.9367007,2300.3,2300.1,0.001]
[1770034636598,0.9367007,2300.3,2299.9,0.001]
[1770034636809,1.17087587,2300.4,2299.9,0.001]
[1770034637021,1.5579458,2300.6,2299.9,0.001]
[1770034637519,2.42458021,2300.7,2299.9,0.001]
[1770034637726,1.17111196,2300.4,2299.9,0.001]
[1770034638726,2.47348261,2300.5,2299.8,0.001]
[1770034638920,0.912,2300.5,2299.6,0.001]
[1770034639090,1.17146321,2300.3,2299.6,0.001]
[1770034639422,0.93717057,2300.2,2299.6,0.001]
[1770034640296,0.93717057,2300.1,2299.6,0.001]
[1770034640493,2.10863378,2300.0,2299.0,12.31430239]
[1770034640693,2.10863378,2300.0,2298.9,0.001]
[1770034640694,1.17146321,2299.8,2298.9,0.001]
[1770034640890,0.93717057,2299.7,2298.9,0.001]
[1770034641120,2.10863378,2299.7,2298.9,12.31530239]
[1770034641312,1.7212825,2300.0,2299.0,12.31430239]
[1770034641538,1.7212825,2300.0,2298.9,0.001]
[1770034641539,2.89274571,2300.0,2298.9,0.001]
[1770034641827,1.17146321,2299.9,2298.9,12.31530239]
[1770034642314,1.17146321,2299.9,2298.9,0.001]
[1770034642518,1.17146321,2299.9,2298.2,12.31430239]
[1770034642519,12.60784387,2299.6,2298.2,12.31430239]
[1770034642816,1.17146321,2299.3,2298.2,13.54573263]
[1770034643219,1.72000603,2299.4,2298.2,13.54573263]
[1770034644127,1.17146321,2300.0,2298.3,12.31430239]
[1770034644897,1.17146321,2299.9,2298.3,12.31430239]
[1770034645253,1.17146321,2300.0,2298.4,0.2335703]
[1770034645401,1.37728129,2300.2,2298.5,12.31430239]
[1770034645732,1.37728129,2300.2,2298.7,12.31430239]
[1770034646701,1.37728129,2300.2,2298.9,12.31430239]
[1770034647240,15.84312408,2300.8,2298.9,12.31430239]
[1770034647241,0.4281215,2302.8,2301.2,1.0863897]
[1770034647408,13.0,2303.6,2301.2,1.0863897]
[1770034647409,10.6931374,2303.6,2302.3,3.84025077]
[1770034647609,10.84855221,2304.6,2302.9,2.30380542]
[1770034647610,13.90784387,2303.5,2302.9,2.30380542]
[1770034647838,13.90784387,2303.5,2302.4,1.30977065]
[1770034647839,13.90784387,2303.5,2302.4,0.38402508]
[1770034648138,12.60784387,2302.8,2301.7,3.84025077]
[1770034648422,12.60784387,2302.8,2301.4,5.37635108]
[1770034648423,12.60784387,2302.6,2301.4,5.37635108]
[1770034648617,12.60784387,2302.6,2301.5,0.53763511]
[1770034648812,12.60784387,2303.0,2301.2,0.912]
[1770034649052,0.1024,2302.9,2301.2,0.912]
[1770034649228,12.60784387,2303.0,2301.2,0.912]
[1770034649629,12.71024387,2302.9,2301.2,0.912]
[1770034650114,12.71024387,2302.9,2301.1,7.29844101]
[1770034650316,0.0008004,2305.6,2303.3,3.80586854]
[1770034650520,0.0008004,2305.6,2303.6,0.0008016]
[1770034650521,12.60864427,2305.6,2303.6,0.0008016]
[1770034650722,0.0008012,2306.3,2304.7,3.90826854]
[1770034650906,0.0008012,2306.3,2304.8,1.3090711]
[1770034651100,12.60784387,2307.7,2305.1,0.0008016]
[1770034651327,12.60784387,2307.3,2305.2,0.3970711]
[1770034651542,12.60784387,2307.3,2305.1,0.0008016]
[1770034651543,12.60784387,2306.7,2305.1,0.9128016]
[1770034651728,12.60784387,2306.5,2305.1,0.9128016]
[1770034651929,12.60784387,2306.5,2305.1,0.0008016]
[1770034652112,12.60784387,2306.4,2305.1,0.9128016]
[1770034652303,12.60784387,2306.8,2305.2,0.911]
[1770034652900,12.60784387,2306.8,2305.1,0.0008016]
[1770034653230,0.9118012,2307.9,2305.3,3.80586854]
[1770034653231,12.60784387,2307.5,2305.3,3.80586854]
[1770034653429,12.60784387,2307.4,2305.4,15.411]
[1770034653799,12.60784387,2307.4,2305.4,14.5]
[1770034654232,12.60864507,2307.9,2305.5,4.71686854]
[1770034654434,12.60784387,2307.7,2305.7,3.80586854]
[1770034654630,12.60864507,2307.9,2305.8,3.80586854]
[1770034654840,0.1115155,2308.1,2305.9,0.911]
[1770034655038,2.25744673,2309.7,2305.9,0.911]
[1770034655039,3.413224,2309.6,2308.3,1.31628519]
[1770034655205,13.0,2309.3,2307.4,0.0008012]
[1770034655420,2.532181,2309.5,2307.4,0.0008012]
[1770034655629,2.532181,2309.5,2307.9,4.675473]
[1770034655630,13.0,2309.5,2307.9,4.675473]
[1770034655829,0.09020693,2309.7,2307.9,4.675473]
[1770034655830,13.1123163,2309.3,2307.9,4.675473]
[1770034656052,13.0,2309.3,2307.8,4.675473]
[1770034656223,13.0,2309.3,2307.7,0.911]
[1770034656224,13.1123163,2309.2,2307.6,4.675473]
[1770034656545,13.1123163,2309.2,2307.4,0.0008012]
[1770034656546,13.0,2308.9,2307.4,0.0008012]
[1770034656950,0.1123163,2308.8,2307.4,4.6762742]
[1770034657456,13.0,2308.6,2307.4,0.0008012]
[1770034658271,13.0,2312.3,2308.5,9.52314784]
[1770034658415,13.0,2312.0,2310.2,1.91186471]
[1770034658619,4.32139576,2314.1,2310.2,1.91186471]
[1770034658620,13.0,2311.9,2310.2,1.91186471]
[1770034658847,13.0,2311.7,2309.5,0.1024]
[1770034659075,13.0,2311.7,2309.4,9.52314784]
[1770034659076,13.0,2311.5,2308.8,9.52314784]
[1770034659254,0.1024,2311.3,2308.3,9.52314784]
[1770034659426,0.1024,2311.3,2307.4,4.33449567]
[1770034659427,13.0,2310.9,2308.4,0.91]
[1770034659627,9.52314784,2311.5,2307.8,9.52314784]
[1770034659628,15.909081,2310.6,2308.0,0.01314204]
[1770034659947,13.1024,2311.0,2308.6,0.01314204]
[1770034660252,0.95231478,2311.4,2308.4,0.1024]
[1770034660253,13.0,2310.8,2308.4,0.1024]
[1770034660439,13.0,2310.8,2307.4,1.1738012]
[1770034660440,13.0,2310.5,2307.4,0.0008012]
[1770034660639,13.0,2310.3,2307.9,1.0124]
[1770034660846,13.0,2310.1,2308.0,0.91]
[1770034661041,13.0,2310.1,2308.1,1.08313857]
[1770034661246,2.11987575,2311.7,2308.1,1.08313857]
[1770034661247,13.0,2313.0,2309.6,9.52314784]
[1770034661425,3.125298,2312.6,2311.9,3.125298]
[1770034661750,13.0,2313.2,2311.8,3.125298]
[1770034661931,13.0,2313.2,2311.7,3.125298]
[1770034662256,0.59020693,2314.5,2312.5,3.125298]
[1770034662257,13.0,2313.9,2312.5,3.125298]
[1770034662569,13.0,2313.7,2312.2,0.91]
[1770034662860,13.0,2313.7,2311.3,0.01314204]
[1770034662861,13.0,2313.7,2311.6,0.01314204]
[1770034663073,13.0,2313.7,2312.5,3.125298]
[1770034663251,13.0,2313.7,2311.2,0.01314204]
[1770034663252,0.59020693,2314.5,2311.0,0.01314204]
[1770034663253,13.0,2313.5,2311.0,0.01314204]
[1770034663440,13.0,2312.9,2310.0,9.52314784]
[1770034663639,1.3,2313.6,2310.9,0.909]
[1770034663640,13.0,2312.7,2310.9,0.909]
[1770034663870,14.3,2312.6,2311.0,3.125298]
[1770034664082,0.0011,2311.5,2311.0,3.125298]
[1770034664274,0.909,2313.9,2310.5,0.22612788]
[1770034664275,0.59020693,2314.5,2314.2,3.125298]
[1770034664436,3.7691629,2320.0,2311.1,3.3208115]
[1770034664437,0.07759132,2314.6,2314.5,3.125298]
[1770034664640,2.1706175,2318.2,2313.4,9.52314784]
[1770034664641,13.0,2316.0,2314.8,3.04770668]
[1770034664969,0.59020693,2315.9,2315.3,3.04770668]
[1770034665166,0.1145155,2317.3,2314.9,3.04770668]
[1770034665167,13.0,2316.4,2314.9,3.04770668]
[1770034665354,13.0,2316.2,2315.2,3.04770668]
[1770034665559,13.0,2316.2,2313.9,0.1024]
[1770034665560,13.0,2316.2,2314.8,3.04770668]
[1770034665756,1.0235155,2317.3,2314.2,3.04770668]
[1770034665757,2.141616,2316.0,2314.2,3.04770668]
[1770034665957,9.52314784,2316.7,2314.1,3.04770668]
[1770034665958,13.0,2315.9,2314.1,3.04770668]
[1770034666157,9.52314784,2316.7,2313.4,3.04770668]
[1770034666158,13.0,2315.5,2313.4,3.04770668]
[1770034666343,13.0,2315.1,2312.4,9.52314784]
[1770034666665,0.59020693,2315.4,2313.3,0.84809224]
[1770034666666,13.0,2314.5,2313.3,0.84809224]
[1770034666837,13.0,2314.3,2313.3,0.84809224]
[1770034667041,13.0,2314.1,2313.3,0.13224405]
[1770034667235,13.0,2314.1,2311.3,9.52314784]
[1770034667236,12.93387797,2313.7,2311.3,9.52314784]
[1770034667441,12.93387797,2313.7,2311.3,10.23314784]
[1770034667656,1.3,2314.0,2310.8,9.52314784]
[1770034667657,12.93387797,2313.5,2310.8,9.52314784]
[1770034667935,12.93387797,2313.3,2310.8,9.52314784]
[1770034668136,12.93387797,2313.3,2310.9,2.43428586]
[1770034668345,12.93387797,2313.3,2311.1,1.08172602]
[1770034668646,12.93387797,2313.3,2310.9,0.908]
[1770034668850,12.93387797,2313.1,2311.0,0.908]
[1770034669257,12.93387797,2313.1,2311.3,1.0816134]
[1770034669447,12.93387797,2313.1,2311.2,1.09480188]
[1770034669651,1.22501278,2313.0,2311.2,1.09480188]
[1770034669867,1.22501278,2313.0,2311.2,1.09481998]
[1770034670165,1.22501278,2313.0,2311.1,0.1024]
[1770034670345,1.22501278,2313.0,2311.2,0.01314204]
[1770034670552,1.22501278,2313.0,2311.2,0.908]
[1770034670759,1.39518908,2312.9,2311.3,0.01314204]
[1770034671068,1.39518908,2312.9,2311.3,0.908]
[1770034671368,12.93387797,2313.1,2311.5,0.01314204]
[1770034671691,1.3,2314.0,2310.7,0.908]
[1770034671692,12.93387797,2312.9,2310.7,0.908]
[1770034671977,12.93387797,2312.9,2310.8,0.57697108]
[1770034672182,12.93387797,2312.5,2310.0,1.08222317]
[1770034672342,10.81653564,2312.8,2310.1,0.908]
[1770034672343,12.93387797,2312.3,2310.1,0.908]
[1770034672544,12.93387797,2312.3,2310.1,2.00331521]
[1770034672859,14.22726577,2312.2,2310.2,0.908]
[1770034673244,14.22726577,2312.2,2310.2,1.99012668]
[1770034673963,14.22726577,2312.2,2310.2,0.908]
[1770034674362,14.22726577,2312.2,2309.8,0.1024]
[1770034674552,14.22726577,2312.2,2310.2,1.08215205]
[1770034674876,12.93387797,2312.0,2310.2,0.2335703]
[1770034675178,12.93387797,2312.0,2309.4,0.1024]
[1770034675482,12.93387797,2312.0,2309.5,0.908]
[1770034675707,12.93387797,2312.0,2308.7,2.89430509]
[1770034675708,12.93387797,2311.5,2308.7,0.72235717]
[1770034675984,12.93387797,2311.5,2309.0,1.08267748]
[1770034676187,12.93387797,2311.3,2309.1,1.55176173]
[1770034676483,12.93387797,2311.3,2309.1,0.54136173]
[1770034676691,12.93387797,2311.3,2310.4,0.001]
[1770034677049,12.93387797,2311.3,2309.1,0.54136173]
[1770034677285,12.93387797,2311.3,2310.1,0.001]
[1770034677484,14.22676577,2311.2,2309.0,0.908]
[1770034677779,12.93287797,2310.7,2309.2,0.001]
[1770034678346,12.93287797,2310.5,2309.2,0.001]
[1770034678650,12.93287797,2310.5,2308.6,0.01123624]
[1770034678651,12.93287797,2309.8,2308.6,0.01123624]
[1770034678856,12.92725985,2308.8,2307.4,0.0018012]
[1770034679116,12.92725985,2309.7,2307.6,1.08437387]
[1770034679253,12.92725985,2309.7,2307.8,0.01314204]
[1770034679576,12.92725985,2309.7,2307.6,1.08437387]
[1770034679577,12.92725985,2309.7,2307.6,1.08435053]
[1770034679749,12.92725985,2309.5,2307.6,0.001]
[1770034679950,12.92725985,2309.3,2307.6,0.001]
[1770034680359,12.92725985,2309.1,2307.6,0.001]
[1770034680981,12.92725985,2309.1,2306.2,2.93120995]
[1770034680982,12.92585925,2307.6,2306.4,0.001]
[1770034681903,12.74204394,2307.6,2306.4,0.001]
[1770034682606,12.8330508,2307.1,2305.1,0.0008016]
[1770034682889,12.8330508,2307.1,2305.4,1.0844051]
[1770034683065,9.52314784,2307.7,2305.1,0.0008016]
[1770034683066,13.35453501,2307.0,2305.5,0.89670791]
[1770034683268,13.35453501,2307.0,2305.1,0.0008016]
[1770034683502,13.35453501,2307.0,2305.2,0.8971341]
[1770034683701,12.8330508,2306.7,2305.1,0.0008016]
[1770034683906,12.8330508,2306.2,2305.1,0.0008016]
[1770034684061,12.8330508,2306.2,2303.6,1.37003344]
[1770034684062,12.8330508,2306.2,2304.0,1.08503361]
[1770034684257,0.0008008,2305.6,2304.1,0.85335767]
[1770034684459,12.8338516,2305.6,2303.6,0.0008016]
[1770034686668,0.0008008,2305.6,2303.9,0.2335703]
[1770034686992,0.0008008,2305.6,2303.9,0.24671234]
[1770034687365,0.0008008,2305.6,2304.3,0.24671234]
[1770034687562,0.0008016,2306.3,2304.7,0.2335703]
[1770034687793,0.0008016,2306.3,2304.9,0.2335703]
[1770034688395,0.0008016,2306.3,2304.9,0.24671234]
[1770034688691,0.0008016,2306.3,2305.0,0.1024]
[1770034688879,0.0008016,2306.3,2305.1,0.2335703]
[1770034689595,0.0008016,2306.3,2305.3,0.2335703]
[1770034689792,0.0011,2305.4,2305.3,0.82253666]
[1770034689996,0.0008016,2306.3,2305.3,0.82253666]
[1770034690373,0.0011,2305.6,2305.3,0.82253666]
[1770034690567,0.0008016,2306.3,2305.3,0.82253666]
[1770034690768,0.0008016,2306.3,2305.3,0.58896636]
[1770034690984,0.0008016,2306.3,2304.5,0.909]
[1770034691189,0.0011,2306.6,2305.2,0.1024]
[1770034691377,0.0011,2306.6,2305.3,0.2335703]
[1770034691578,0.0011,2306.6,2305.4,0.2335703]
[1770034691787,0.0011,2306.6,2305.1,0.000802]
[1770034692095,12.8345512,2306.6,2305.1,0.000802]
[1770034692296,14.11690632,2306.5,2305.1,0.000802]
[1770034692506,14.11690632,2306.5,2305.2,1.08448741]
[1770034692678,14.11690632,2306.5,2305.2,1.08450186]
[1770034692877,14.11690632,2306.5,2305.1,1.08531878]
[1770034693383,14.10454819,2306.5,2305.2,1.0845007]
[1770034693578,0.0011,2306.6,2305.1,0.24751434]
[1770034693782,0.0011,2306.6,2305.1,0.2343723]
[1770034693997,0.0011,2306.6,2305.2,0.01314204]
[1770034694202,0.0011,2306.6,2305.1,0.2343723]
[1770034694510,12.8334512,2307.7,2305.9,0.01314204]
[1770034694798,12.8334512,2307.7,2305.7,0.2335703]
[1770034694799,14.11687648,2307.7,2305.7,0.2335703]
[1770034694971,0.003,2306.0,2305.1,0.3338996]
[1770034695174,12.8334512,2307.5,2305.4,0.01314204]
[1770034695372,9.52314784,2308.1,2305.3,0.2335703]
[1770034695373,14.11679632,2307.4,2305.3,0.2335703]
[1770034695578,12.8334512,2307.4,2305.7,0.01314204]
[1770034695981,12.8334512,2308.0,2306.0,0.01314204]
[1770034696172,12.8334512,2308.0,2306.0,0.24671234]
[1770034696615,12.8334512,2308.0,2306.3,0.01314204]
[1770034696794,1.28422688,2307.9,2306.4,0.909]
[1770034697915,1.28422688,2307.9,2306.4,1.99292566]
[1770034698218,0.0008016,2307.9,2306.5,0.2335703]
[1770034698418,0.0008016,2307.9,2306.5,0.24671234]
[1770034698719,0.0008016,2307.9,2306.7,0.2335703]
[1770034699081,0.0008016,2307.9,2306.3,0.1024]
[1770034699300,0.0008016,2307.9,2306.5,0.2335703]
[1770034699506,0.0008016,2307.9,2306.5,1.36364947]
[1770034700008,0.0008016,2307.9,2306.5,1.13007917]
[1770034700384,0.0008016,2307.9,2306.5,0.22107917]
[1770034701189,0.0008016,2307.9,2306.6,1.13049002]
[1770034701385,0.0008016,2307.9,2306.7,0.89691972]
[1770034701590,0.0008016,2307.9,2306.8,0.2335703]
[1770034701787,0.0008012,2308.6,2307.0,0.2335703]
[1770034702085,0.0008012,2308.6,2307.1,0.89691972]
[1770034702716,0.0011,2307.9,2307.1,0.89691972]
[1770034703122,0.0011,2307.9,2307.2,0.62406352]
[1770034703403,0.0011,2307.9,2307.3,1.28815342]
[1770034703606,0.0011,2307.9,2307.4,0.89691972]
[1770034703805,0.0011,2307.9,2306.8,0.22730603]
[1770034703806,0.0011,2307.9,2306.9,0.909]
[1770034703978,0.0011,2307.9,2307.0,1.29318217]
[1770034704178,0.0011,2307.9,2307.1,0.90175344]
[1770034705388,0.0011,2307.9,2307.2,0.90175344]
[1770034705592,0.0011,2307.9,2307.3,0.90175344]
[1770034705806,0.0011,2307.9,2307.4,0.90175344]
[1770034706013,0.0011,2307.9,2306.8,2.35987481]
[1770034706325,0.0011,2307.9,2306.9,0.90691027]
[1770034706481,0.0011,2307.9,2307.0,0.90691027]
[1770034706677,0.0011,2307.9,2307.1,0.90691027]
[1770034706894,0.0011,2307.9,2307.2,0.90691027]
[1770034707109,0.0011,2307.9,2307.3,0.90691027]
[1770034707314,0.0011,2307.9,2307.4,0.90691027]
[1770034707527,0.0011,2307.9,2307.5,0.90691027]
[1770034707683,0.0011,2307.9,2307.2,1.13810296]
[1770034707888,0.0011,2307.9,2307.3,0.91077956]
[1770034708089,0.0011,2307.9,2307.4,0.91077956]
[1770034708330,0.0011,2307.9,2307.6,1.13810296]
[1770034708513,0.0008012,2308.6,2307.7,2.04888252]
[1770034708514,12.8342524,2308.6,2307.7,2.04888252]
[1770034708711,14.11767764,2308.6,2307.8,0.91077956]
[1770034708910,14.11767764,2308.6,2307.9,0.91077956]
[1770034709138,14.11767764,2308.6,2307.8,1.13810296]
[1770034709139,12.8342524,2308.6,2308.0,0.91077956]
[1770034709314,12.8342524,2308.6,2308.1,0.91152459]
[1770034709516,12.8342524,2308.6,2307.5,2.13256878]
[1770034709517,12.8342524,2308.6,2307.9,1.13810296]
[1770034709719,0.0008012,2308.6,2308.0,0.91141105]
[1770034709895,0.0008012,2308.6,2308.1,0.91141105]
[1770034710229,0.0008012,2308.6,2307.8,1.13810296]
[1770034710404,0.0008012,2308.6,2307.9,1.13810296]
[1770034710930,0.0008012,2308.6,2307.8,1.13810296]
[1770034711492,0.0008012,2308.6,2308.1,1.13810296]
[1770034712119,0.0008012,2308.6,2308.0,1.13810296]
[1770034712317,0.0008012,2308.6,2308.1,1.13810296]
[1770034712829,0.0008012,2308.6,2307.4,1.08343274]
[1770034712830,0.0011,2308.9,2308.3,1.13810296]
[1770034713003,12.37774567,2309.8,2308.6,1.1369226]
[1770034713405,12.37774567,2309.8,2308.8,1.1369226]
[1770034713600,12.37774567,2309.8,2308.9,1.1369226]
[1770034713927,12.37774567,2309.8,2308.8,1.1369226]
[1770034714088,4.32445983,2312.5,2309.0,1.1369226]
[1770034714089,12.37774567,2310.3,2309.0,1.1369226]
[1770034714294,13.61552024,2310.3,2309.1,1.1369226]
[1770034714918,13.61552024,2310.3,2309.0,1.1369226]
[1770034715122,13.61552024,2310.3,2309.1,1.1369226]
[1770034715852,13.61552024,2310.3,2309.0,1.1369226]
[1770034716020,12.37774567,2310.1,2308.8,1.1369226]
[1770034716712,12.37774567,2310.1,2308.9,1.1369226]
[1770034717312,0.0011,2309.6,2308.8,1.1369226]
[1770034718145,12.37774567,2310.6,2308.9,0.2335703]
[1770034718311,0.0011,2312.8,2309.4,1.1369226]
[1770034718312,13.61607024,2310.5,2309.4,1.1369226]
[1770034718513,13.61607024,2310.5,2309.5,1.13434572]
[1770034718818,13.61607024,2310.5,2309.3,1.13434572]
[1770034719023,13.61607024,2310.5,2309.4,1.13434572]
[1770034719241,13.61607024,2310.5,2309.2,1.51426077]
[1770034719242,13.61607024,2310.5,2309.3,1.13434572]
[1770034719452,12.37829567,2311.3,2309.6,1.13434572]
[1770034719649,12.37829567,2311.3,2309.9,1.13434572]
[1770034719861,12.37829567,2311.3,2310.0,1.13434572]
[1770034720016,12.37829567,2311.3,2310.1,1.13434572]
[1770034720216,14.56684136,2311.2,2309.9,1.13434572]
[1770034720511,12.37829567,2311.2,2309.9,1.13434572]
[1770034720716,12.37829567,2311.2,2309.8,1.13434572]
[1770034720915,12.37829567,2311.2,2309.6,1.13434572]
[1770034721541,9.50716128,2311.4,2309.3,1.13434572]
[1770034721542,12.37829567,2310.8,2309.3,1.13434572]
[1770034721858,13.61612524,2310.7,2309.4,1.13434572]
[1770034722029,13.61612524,2310.7,2309.3,0.26486065]
[1770034722030,13.61612524,2310.7,2309.5,0.90669065]
[1770034722214,13.61612524,2310.7,2309.3,1.39920637]
[1770034722215,13.61612524,2310.7,2309.6,0.90669065]
[1770034722415,13.61612524,2310.7,2309.7,0.90669065]
[1770034722628,13.61612524,2310.7,2309.4,1.13434572]
[1770034722833,1.36161252,2310.6,2309.5,0.9069403]
[1770034723049,1.36161252,2310.6,2309.6,0.9069403]
[1770034723358,13.73990819,2310.6,2309.7,0.9069403]
[1770034723522,13.73990819,2310.6,2309.4,1.13434572]
[1770034723721,13.73990819,2310.6,2309.5,0.90766947]
[1770034723921,13.73990819,2310.6,2309.4,1.13434572]
[1770034723922,13.75228649,2310.5,2309.6,0.90766947]
[1770034724248,13.75228649,2310.5,2309.7,0.90766947]
[1770034724419,13.75228649,2310.5,2309.4,1.13434572]
[1770034724619,13.75228649,2310.5,2309.5,0.90808801]
[1770034724816,12.37829567,2311.0,2309.6,0.90808801]
[1770034725048,12.37829567,2311.0,2309.6,1.13434572]
[1770034725346,12.37829567,2311.0,2309.7,0.90808801]
[1770034725514,12.37829567,2311.0,2309.4,1.13434572]
[1770034725713,12.37829567,2311.0,2309.5,2.04238721]
[1770034725931,12.37829567,2310.8,2309.6,0.90804149]
[1770034726245,12.37829567,2310.8,2309.7,0.90804149]